Cogmind - Beta 14 @@@ ROGUE MODE // 2024.09.21 @ 00:52:54 Player: Turtle Result: Destroyed by Y-45 Defender with Heavy Assault Rifle Performance ------------- Evolutions (1) 500 Regions Visited (3) 600 Robots Destroyed (43) 215 Value Destroyed (840) 840 Prototype IDs (0) 0 Alien Tech Used (0) 0 Bonus (0) 0 TOTAL SCORE: 2155 Bonus ------- None Cogmind --------- Core Integrity 0/400 Matter 300/300 Energy 237/250 System Corruption 0% Temperature Cool (9) Movement Core (300) Ox5 Location -9/Materials Parts ------- > --- POWER (1) -------- Ion Engine > --- PROPULSION (3) --- (None) > --- UTILITY (3) ------ Medium Storage Unit Sensor Array Signal Interpreter > --- WEAPON (2) ------- Mace > --- INVENTORY (10) --- Improved Heat Sink Weight Redist. System Structural Scanner Weapon Shielding Authchip [Armor] Mace Mace Peak State ------------ > --- POWER ------------ Light Nuclear Core > --- PROPULSION ------- VSS Leg VSS Leg VSS Leg > --- UTILITY ---------- Large Storage Unit Sensor Array Signal Interpreter > --- WEAPON ----------- Mace Mace > --- INVENTORY -------- Light Ion Engine Aluminum Leg Aluminum Leg Aluminum Leg Compact Wheel Improved Heat Sink Medium Storage Unit Large Storage Unit Structural Scanner Sensor Array Weapon Shielding Weapon Shielding Authchip [Armor] Mace Mace [Rating: 21] Favorites ----------- Power Light Nuclear Core Engine Ion Engine Power Core Light Nuclear Core Propulsion Compact Wheel Leg Aluminum Leg Wheel Compact Wheel Hover Unit Airjet Utility Large Storage Unit Device Sensor Array Storage Large Storage Unit Processor Signal Interpreter Weapon Mace Energy Gun Particle Gun Energy Cannon Beam Cannon Ballistic Gun Assault Rifle Impact Weapon Mace Build | -11 -10 -10 -9 ------- Run | Yrd Mat Min Mat Slots Evolved 2 | . . . 2 Power . | . . . . Propulsion 1 | . . . 1 Utility 1 | . . . 1 Weapon . | . . . . Parts Attached 43 | 7 16 6 14 Power 7 | 1 2 1 3 Engine 4 | 1 . . 3 Core 3 | . 2 1 . Reactor . | . . . . Propulsion 16 | 3 3 2 8 Treads . | . . . . Leg 7 | 3 . . 4 Wheel 5 | . 3 2 . Hover 4 | . . . 4 Flight . | . . . . Utility 12 | 1 5 3 3 Device 8 | . 4 3 1 Storage 3 | 1 1 . 1 Processor 1 | . . . 1 Hackware . | . . . . Protection . | . . . . Artifact . | . . . . Weapon 8 | 2 6 . . Energy Gun 1 | . 1 . . Energy Cannon 2 | . 2 . . Ballistic Gun 3 | 2 1 . . Ballistic Cannon . | . . . . Launcher . | . . . . Special Weapon . | . . . . Impact Weapon 2 | . 2 . . Slashing Weapon . | . . . . Piercing Weapon . | . . . . Special Melee Weapon . | . . . . Unidentified Prototypes . | . . . . Parts Lost 14 | . . 4 10 Power 4 | . . 1 3 Propulsion 7 | . . 2 5 Utility 2 | . . 1 1 Weapon 1 | . . . 1 Highest Loss Streak 6 | . . 3 6 To Critical Strikes . | . . . . Average Slot Usage (%) 91 | . 93 96 84 Engine 3 | . 6 . 2 Core 8 | . 6 14 4 Leg 9 | . 13 . 10 Wheel 14 | . 13 26 6 Hover 2 | . . . 9 Device 9 | . 9 12 6 Storage 13 | . 14 14 11 Processor 2 | . . . 11 Energy Gun 2 | . 4 . . Energy Cannon 2 | . 5 . . Ballistic Gun 7 | . 15 . . Impact Weapon 14 | . 2 28 22 Peak Build Rating 21 | 6 13 13 21 Average Rating 11 | 5 8 11 15 On Entrance 7 | . 5 12 13 Naked Turns . | . . . . Heaviest Build 32 | 14 32 30 30 Greatest Support 36 | 20 32 32 36 Greatest Overweight (x) 6 | 1 . 1 6 Average Overweight (x) . | . . . . Largest Inventory Capacity 15 | 8 15 15 15 Average Capacity 12 | 7 11 15 13 Most Carried 15 | 1 15 15 15 Average Carried 11 | . 10 14 11 Final Capacity 15 | 8 15 15 10 Final Carried 15 | 1 15 15 7 Class Distribution -------------------- 100% | Mutant Dominant Class ---------------- Mutant | -10/Materials Mutant | -10/Mines Mutant | -9/Materials Resources | -11 -10 -10 -9 ----------- Run | Yrd Mat Min Mat Matter Collected 787 | 294 247 110 136 Remotely 10 | . . 10 . Salvage Created 1326 | 96 369 210 651 Parts 70 | 6 26 10 28 Haulers Intercepted 4 | . 2 . 2 Recyclers Shooed 1 | . 1 . . Parts Field Recycled . | . . . . Retrieved Matter . | . . . . Parts Self-Destructed . | . . . . Prevented . | . . . . Kills | -11 -10 -10 -9 ------- Run | Yrd Mat Min Mat Combat Hostiles Destroyed 25 | . 6 6 13 Melee 15 | . . 6 9 Guns 4 | . 4 . . Cannons 2 | . 2 . . Classes Destroyed 10 | 2 5 . 3 Worker 4 | . . . 4 Builder 1 | . . . 1 Tunneler 2 | 1 . . 1 Hauler 4 | . 2 . 2 Recycler 2 | 1 . 1 . Operator 1 | . 1 . . Watcher 4 | . 3 . 1 Swarmer 9 | . 2 3 4 Grunt 12 | . 4 3 5 Sentry 4 | . . . 4 Best Kill Streak 12 | 1 3 4 12 Combat Bots Only 5 | . 2 3 5 Max Kills in Single Turn 1 | 1 1 1 1 Gunslinging . | . . . . Exploded . | . . . . Melee 1 | . . 1 1 Uniques/NPCs Destroyed . | . . . . Combat | -11 -10 -10 -9 -------- Run | Yrd Mat Min Mat Hostile Shots Fired 231 | . 41 33 157 Missed 61 | . 8 6 47 Damage Taken 1972 | . 424 275 1273 Core 575 | . 90 76 409 Absorbed by Shields . | . . . . Regen/Repaired (Parts) 55 | . 55 . . Core Remaining (%) 66 | 100 . 33 . Volleys Fired 39 | 6 33 . . Largest 2 | 2 2 . . Hottest 125 | 40 125 . . Shots Fired 73 | 8 65 . . Gun 62 | 8 54 . . Cannon 11 | . 11 . . Launcher . | . . . . Special . | . . . . Kinetic 51 | 8 43 . . Thermal 22 | . 22 . . Explosive . | . . . . Electromagnetic . | . . . . Robot Hit Streak 10 | 4 10 . . Robot Miss Streak 3 | 1 3 . . Penetration Max . | . . . . Secondary Targets . | . . . . Shots Hit Robots 106 | 6 41 13 46 Core Hits 34 | 3 16 4 11 Critical Kills 5 | . . 1 4 Critical Parts Destroyed 6 | . 1 1 4 Critical Strikes 12 | . 1 2 9 Smash 12 | . 1 2 9 Melee Attacks 81 | . 3 19 59 Impact 81 | . 3 19 59 Slashing . | . . . . Piercing . | . . . . Sneak Attacks 15 | . 2 3 10 Combat Hostiles 3 | . . 2 1 Follow-up Attacks 8 | . . 2 6 Damage Inflicted 3050 | 78 656 499 1817 Guns 526 | 78 448 . . Cannons 104 | . 104 . . Explosions . | . . . . Melee 2420 | . 104 499 1817 Ramming . | . . . . Kinetic 399 | 78 321 . . Thermal 231 | . 231 . . Explosive . | . . . . Electromagnetic . | . . . . Impact 2420 | . 104 499 1817 Slashing . | . . . . Piercing . | . . . . Highest Corruption 2 | . 2 2 . Average Corruption 1 | . 1 2 . Corruption Purged . | . . . . Corruption Blocked . | . . . . Effects 15 | . 12 3 . Message Errors 3 | . 2 1 . Matter Fused 3 | . 3 . . Heat Flow Errors 1 | . . 1 . Energy Discharges 1 | . 1 . . Parts Fused 1 | . 1 . . Data Loss (minor) 2 | . 2 . . Data Loss (major) 1 | . 1 . . Misfires 1 | . 1 . . Alerts 1 | . . 1 . Weapon Failures 1 | . 1 . . Overload Shots . | . . . . Overflow Damage 611 | . 94 74 443 Projectiles . | . . . . Explosions . | . . . . Melee 611 | . 94 74 443 Knockbacks 9 | . . 3 6 Impact 9 | . . 3 6 Kinetic . | . . . . Secondary . | . . . . Self-Inflicted Damage . | . . . . Shots . | . . . . Rammed . | . . . . Targets Rammed 2 | . 2 . . Kicked 2 | . 2 . . Crushed . | . . . . Highest Temperature 321 | . 321 234 8 Average Temperature 98 | . 97 126 6 Received Heat Transfer 675 | . 201 90 384 Effects 3 | . 3 . . Interference 3 | . 3 . . Siege Activations . | . . . . Robots Corrupted 10 | . 1 1 8 Combat Hostiles 4 | . . . 4 Parts Fried 16 | . 1 3 12 Impact Corruptions 27 | . 3 4 20 Robots Melted . | . . . . Combat Hostiles . | . . . . Parts Melted . | . . . . Heat Transferred 518 | . 518 . . Parts Sabotaged . | . . . . Parts Stolen . | . . . . Parts Stripped . | . . . . Power Chain Reactions . | . . . . Alert | -11 -10 -10 -9 ------- Run | Yrd Mat Min Mat Peak Influence 263 | 10 179 168 263 Initial 23 | . 6 23 . Average 55 | 4 60 51 61 Maximum Alert Level 1 | . . . 1 Low Security (%) 97 | 100 100 100 89 Level 1 2 | . . . 10 Level 2 . | . . . . Level 3 . | . . . . Level 4 . | . . . . Level 5 . | . . . . High Security . | . . . . Max Security . | . . . . Squads Dispatched 3 | . 2 . 1 Investigation 1 | . . . 1 Extermination . | . . . . Reinforcement 2 | . 2 . . Assault . | . . . . Garrison . | . . . . Intercept . | . . . . Searches Triggered . | . . . . Construction Impeded . | . . . . Haulers Reinforced . | . . . . Active Scanning Responses . | . . . . Cargo Convoy Interrupts . | . . . . Stealth | -11 -10 -10 -9 --------- Run | Yrd Mat Min Mat Distress Signals 1 | . . . 1 Communications Jammed . | . . . . Distress Signals . | . . . . Times Spotted 49 | . 16 7 26 Peak Tracking Total 7 | . 3 3 7 Tactical Retreats 6 | . 2 1 3 Traps | -11 -10 -10 -9 ------- Run | Yrd Mat Min Mat Traps Triggered 4 | . 3 . 1 Indirectly . | . . . . Trap Hack Attempts . | . . . . Triggered . | . . . . Disarmed . | . . . . Reprogrammed . | . . . . Reused . | . . . . Traps Extracted . | . . . . Installed . | . . . . Triggered . | . . . . Machines | -11 -10 -10 -9 ---------- Run | Yrd Mat Min Mat Machines Disabled . | . . . . Max in Single Turn . | . . . . Machines Repaired . | . . . . Machines Dismantled . | . . . . Machines Sabotaged . | . . . . Overloaded Fab Kills . | . . . . Hacking | -11 -10 -10 -9 --------- Run | Yrd Mat Min Mat Machines Accessed 6 | . 6 . . Terminals 4 | . 4 . . Fabricators . | . . . . Repair Stations 1 | . 1 . . Recycling Units 1 | . 1 . . Scanalyzers . | . . . . Garrison Access . | . . . . Total Hacks 17 | . 17 . . Successful 9 | . 9 . . Failed 8 | . 8 . . Catastrophic 1 | . 1 . . Database Lockouts . | . . . . Manual 3 | . 3 . . Terminals 10 | . 10 . . Fabricators . | . . . . Repair Stations 6 | . 6 . . Recycling Units 1 | . 1 . . Scanalyzers . | . . . . Garrison Access . | . . . . Terminal Hacks 3 | . 3 . . Hauler Manifests 1 | . 1 . . Zone Layout 2 | . 2 . . Fabricator Hacks . | . . . . Repair Station Hacks 4 | . 4 . . Scan Component 2 | . 2 . . Repair 2 | . 2 . . Recycling Unit Hacks 1 | . 1 . . Retrieve Components 1 | . 1 . . Scanalyzer . | . . . . Garrison Access Hacks . | . . . . Unauthorized Hacks 1 | . 1 . . Terminals 1 | . 1 . . Track 1 | . 1 . . Fabricators . | . . . . Repair Stations . | . . . . Recycling Units . | . . . . Scanalyzers . | . . . . Garrison Access . | . . . . Data Cores Recovered . | . . . . Used . | . . . . Hacking Detections 4 | . 4 . . Full Trace Events . | . . . . Feedback Events . | . . . . Feedback Blocked . | . . . . Robot Schematics Acquired . | . . . . Robots Built . | . . . . Authchips . | . . . . Time . | . . . . Total Robot Build Rating . | . . . . Part Schematics Acquired . | . . . . Parts Built . | . . . . Authchips . | . . . . Time . | . . . . Total Part Build Rating . | . . . . Parts Repaired 2 | . 2 . . Time 64 | . 64 . . Parts Recycled . | . . . . Recycled Matter . | . . . . Retrieved Matter . | . . . . Retrieved Components 9 | . 9 . . Parts Scanalyzed . | . . . . Part Schematics Acquired . | . . . . Parts Damaged . | . . . . Bothacking | -11 -10 -10 -9 ------------ Run | Yrd Mat Min Mat Used RIF Installer . | . . . . Robots Hacked . | . . . . Non-combat . | . . . . Combat . | . . . . Robot Hacks Applied . | . . . . Relay Couplers Released . | . . . . Fabnet Peak Effective % . | . . . . Robots Rewired . | . . . . Allies Hacked . | . . . . Hacks Repelled . | . . . . Allies | -11 -10 -10 -9 -------- Run | Yrd Mat Min Mat Total Allies . | . . . . Largest Group . | . . . . Highest-Rated Group . | . . . . Highest-Rated Ally . | . . . . Total Orders . | . . . . Ally Attacks . | . . . . Total Damage . | . . . . Kills . | . . . . Allies Corrupted . | . . . . Allies Melted . | . . . . Intel | -11 -10 -10 -9 ------- Run | Yrd Mat Min Mat Robot Analysis Total . | . . . . Derelict Logs Recovered 2 | . . 2 . Drone Launches . | . . . . Drone Recoveries . | . . . . Exploration | -11 -10 -10 -9 ------------- Run | Yrd Mat Min Mat Turns Passed 2313 | 134 1028 568 583 Spaces Moved 1563 | 84 706 464 309 Core 7 | 6 . . 1 Treads . | . . . . Legs 528 | 78 341 . 109 Wheels 895 | . 365 464 66 Hover 133 | . . . 133 Flight . | . . . . Fastest Speed 50 | 50 100 100 52 Average Speed 101 | 116 109 100 81 Slowest Speed 350 | 120 120 115 350 Overloaded Moves . | . . . . Propulsion Burnouts . | . . . . Robots Hopped . | . . . . Cave-ins Triggered . | . . . . Exploration Rate (%) 53 | 6 91 86 29 Regions Visited 3 Branch Regions 1 Pre-discovered Areas 2 | . . 2 . Known Exits Taken . | . . . . Unknown Exits Taken 3 | 1 1 1 . Scrap Searched 1 | . . 1 . Spaces Dug 2 | . . . 2 Terrain Destroyed 2 | . . . 2 Melee 2 | . . . 2 Projectile . | . . . . AOE . | . . . . Terrain Rammed . | . . . . Walls Destroyed . | . . . . Machines Disabled . | . . . . Actions | -11 -10 -10 -9 --------- Run | Yrd Mat Min Mat Total 2091 | 110 893 536 552 Wait 305 | 12 91 40 162 Move 1560 | 83 705 463 309 Hop . | . . . . Pick Up 35 | . 25 7 3 Fast Attach 25 | 6 9 1 9 Attach 11 | 1 2 4 4 Detach 7 | 2 2 . 3 Swap 7 | . 5 1 1 Drop 33 | . 17 4 12 Fire 39 | 6 33 . . Melee 67 | . 2 16 49 Ram . | . . . . Kick 2 | . 2 . . Crush . | . . . . Escape Stasis . | . . . . Rewire . | . . . . Trap . | . . . . Miscellaneous . | . . . . Route ------- -11/Scrapyard -10/Materials (discovered 5 exits: *Mat x3 / [*Min x2]) -10/Mines -9/Materials History --------- Turn | Location | Event 10 | -11/Scrapyard | Discovered new exit (range 15) 135 | -11/Scrapyard | Entered Materials 309 | -10/Materials | Discovered new exit (range 7) 318 | -10/Materials | Build established: Mutant 412 | -10/Materials | Discovered new exit (range 16) 467 | -10/Materials | Discovered new exit (range 13) 897 | -10/Materials | Discovered new exit (range 15) 978 | -10/Materials | Repaired Lgt. Nuclear Core 1005 | -10/Materials | Repaired Com. Wheel 1050 | -10/Materials | Discovered new exit (range 11) 1163 | -10/Materials | Entered Mines 1164 | -10/Mines | Learned location of Storage (-8) 1236 | -10/Mines | Learned Materials stockpile data 1425 | -10/Mines | Core integrity fell below 50% 1533 | -10/Mines | Lost 3 parts (1p1n1u) 1703 | -10/Mines | Discovered new exit (range 12) 1731 | -10/Mines | Entered Materials 1731 | -9/Materials | Evolved 2 slots: Propulsion x1, Utility x1 2268 | -9/Materials | Core integrity fell below 50% 2306 | -9/Materials | Core integrity fell below 20% 2314 | -9/Materials | Destroyed by Y-45 Defender with Heavy Assault Rifle Last Messages --------------- 02284_ R-06 Scavenger inserts Prototype Energy Cannon into recycling unit. 02285_ S-10 Pest system terminally corrupted. 02285_ Lgt. Assault Rifle fried. 02287_ K-01 Serf collects debris. 02288_ Acquired Ion Engine. 02290_ Acquired 10 matter. 02291_ K-01 Serf collects debris. 02294_ Airjet destroyed. 02294_ K-01 Serf collects debris. 02295_ Y-45 Defender suffers critical hit (Smash). 02295_ Y-45 Defender destroyed. 02297_ Airjet destroyed. 02297_ K-01 Serf collects debris. 02302_ K-01 Serf destroyed. 02305_ Airjet destroyed. 02312_ R-06 Scavenger collects Weight Redist. System. 02313_ Mace destroyed. Map ----- +----------------------------------------------------+ | | | ?????????????????????????????????????????????????? | | ?????????????????????????????????????????????????? | | ?????????????????????????????????????????????????? | | ?????????????????????????????????????????????????? | | ?????????????????????????????????????????????????? | | ?????????????????????????????????????????????????? | | ?????????????????????????????????????????????????? | | ?????????????????????????????????????????????????? | | ?????????????????????????????????????????????????? | | ?????????????????????????????????????????????????? | | ?????????????????????????????????????????????????? | | ?????????????????????????????????????????????????? | | ?????????????????????????????????????????????????? | | ?????????????????????????????????????????????????? | | ?????????????????????????????????????????????????? | | ?????????????????????????????????????????????????? | | ?????????????????????????????????????????????????? | | ?????????????????????????????????????????????????? | | ?????????????????????????????????????????????????? | | +### ????#######+########+############ ?????????? | | ?? ! g ?????????? | | ?? =%! [ ?????????? | | ?? !s%=% x ?????????? | | ??????????????########### s###+#????????????????? | | ?????????????## *! #@=s#????????????????????? | | ?????????????# [%* #=%=#????????????????????? | | ??????????????# "%"=/Y==#????????????????????? | | ??????????????# """ [=#%! #????????????????????? | | ??????????????# """ !# #????????????????????? | | ??????????????# """ x # #????????????????????? | | ??????????????? "Y" # #????????????????????? | | ??????????????# """ # #????????????????????? | | #?????????????########### #????????????????????? | | ###?????????????????????# #????????????????????? | | #?????????????????????# ! #????????????????????? | | ####################### r #????????????????????? | | + [% ]]% #??????????????????|?? | | # #########+######????????????????? | | # #??# % ] #????????????????? | | + #??# #????????????????? | | ######## #######??# #????????????????? | | #??????# #????????# #????????????????? | | ########?# #????????# """ """ #????????????????? | | #?# #????????# """ """ #????????????????? | | #?#+#????????# """ """ #????????????????? | | % #????????????###########+#????????????????? | | #### #?????????????????????????????????????????? | | # #?????????????????????????????????????????[ | | # #?????????????????????????????????????????? | +----------------------------------------------------+ Best States ------------- Heat Dissipation 39 Energy Generation 14 Energy Capacity 250 Matter Stores 300 Matter Capacity 300 Sight Range 16 Robot Scan Range 14 Terrain Scan Density 10 Evasion (%) 57 Authchip Count 1 Item Schematics ----------------- None Robot Schematics ------------------ None Fabricated ------------ Nothing Alien Tech Used ----------------- None Achievements -------------- None Challenges ------------ None Game ------ Seed SapperTitaniumTube Manual? 0 Play Time 00:49:44 Cumulative 31.3 hours Start 2024.08.25 @ 18:18:29 End 2024.09.21 @ 00:52:54 Sessions 8 Manual Loads 0 Difficulty Rogue Special Mode None Game No. 43 Rogue 43 Adventurer 0 Explorer 0 Win Type - Total 0 Types 0/0/0/0/0/0/0/0/0 Lore% 15 Gallery% 24 Achievement% 23 Wizard Run 0 Options --------- Layout 1 ASCII 0 Keyboard 1 Movement Arrows Keybinds 0 Fullscreen 1 Font 24/Smallcaps Map View 50x40 Zoom Use 0% Tactical HUD 1 Map Filters NONE Filters NONE Steam 1 RUN: 88630ac3-c642-412c-a6d6-ba398811c823